bitfinex-derivatives/quotes_ETHF0:USTF0_20250810
["timestamp","ask_amount","ask_price","bid_price","bid_amount"]
[1754790867152,1.8103,4306.3,4306.2,0.8912]
[1754790867552,2.2742,4306.3,4306.2,0.8912]
[1754790867853,2.73854,4306.3,4306.2,0.3037]
[1754790868152,2.73854,4306.3,4305.9,0.4818]
[1754790868352,0.9115,4306.0,4305.9,0.7855]
[1754790868552,2.2742,4306.0,4305.9,0.7855]
[1754790869052,2.2742,4306.0,4305.9,0.8912]
[1754790869948,1.8103,4306.0,4305.8,3.7078]
[1754790870149,2.2742,4305.9,4305.8,0.0935]
[1754790870355,2.2742,4305.4,4305.3,3.2078]
[1754790872456,0.5003,4305.4,4305.3,4.7496]
[1754790872652,1.4118,4305.4,4305.3,4.7496]
[1754790872861,2.2742,4305.4,4305.3,4.7496]
[1754790873359,2.2742,4305.4,4305.3,3.5115]
[1754790873754,2.2742,4305.4,4305.3,4.7496]
[1754790873955,1.4118,4305.4,4305.3,4.7496]
[1754790874157,0.8204,4305.4,4305.3,4.7496]
[1754790874554,0.8204,4305.4,4305.3,4.89991915]
[1754790874759,0.8204,4305.9,4305.8,1.5418]
[1754790874960,1.37588,4305.9,4305.5,0.3944]
[1754790875159,2.1459,4305.6,4305.5,0.3103]
[1754790875455,0.60001672,4306.0,4305.5,2.11667056]
[1754790875655,0.7637,4305.9,4305.8,4.1331]
[1754790875862,0.7637,4305.9,4305.8,4.86004408]
[1754790876651,0.4539,4305.9,4305.8,4.85999344]
[1754790877362,1.7793,4305.9,4305.8,4.77629344]
[1754790877661,2.1459,4305.9,4305.8,0.15029344]
[1754790877857,2.1459,4305.4,4305.3,4.0181]
[1754790878058,2.6459,4305.4,4305.3,4.16839928]
[1754790878258,2.6459,4305.4,4305.3,4.43469928]
[1754790878557,2.6459,4305.4,4305.3,3.85809928]
[1754790878758,3.11034,4305.4,4305.3,3.85809928]
[1754790879059,0.96444,4305.4,4305.3,3.85809928]
[1754790879266,1.41834,4305.4,4305.3,5.35999928]
[1754790879658,1.72814,4305.4,4305.3,5.35999928]
[1754790879858,3.11034,4305.4,4305.3,5.35999928]
[1754790880058,3.11034,4305.4,4305.3,5.27629928]
[1754790880265,3.11034,4305.4,4305.3,5.35999928]
[1754790880867,2.28654,4305.4,4305.3,5.35999928]
[1754790881260,1.97804,4305.4,4305.3,5.35999928]
[1754790881962,1.41834,4305.4,4305.3,5.35999928]
[1754790882168,3.11034,4305.4,4305.3,5.35999928]
[1754790882461,1.5136,4305.4,4305.3,5.35999928]
[1754790882662,0.9539,4305.4,4305.3,5.41229928]
[1754790882869,0.5,4305.4,4305.3,5.41229928]
[1754790885263,0.5,4305.4,4305.3,11.41229928]
[1754790885463,0.0084,4305.4,4305.3,11.41229928]
[1754790886068,1.3305,4305.4,4305.3,5.35999928]
[1754790886276,2.1543,4305.4,4305.3,5.35999928]
[1754790886571,2.1543,4305.4,4305.3,3.85809928]
[1754790887772,2.1543,4305.4,4305.3,4.49029928]
[1754790888271,2.1543,4305.4,4305.3,4.34]
[1754790888473,2.1543,4305.4,4305.3,4.80059038]
[1754790889168,2.1543,4305.4,4305.3,3.85809038]
[1754790891369,2.1543,4305.4,4305.3,3.85803345]
[1754790893170,2.1543,4305.4,4305.3,4.49023345]
[1754790893371,2.1543,4305.4,4305.3,4.80053345]
[1754790893673,2.1543,4305.4,4305.3,4.43463345]
[1754790893869,2.1543,4305.4,4305.3,3.85803345]
[1754790894375,2.1543,4305.4,4305.3,3.8580163]
[1754790895170,2.1543,4305.4,4305.3,3.7078]
[1754790895370,2.1543,4305.4,4305.3,0.0084]
[1754790895573,2.75706571,4305.4,4305.3,0.0084]
[1754790895871,2.1459,4304.8,4304.7,3.2078]
[1754790896076,2.6104,4304.8,4304.7,3.2078]
[1754790896372,2.61047,4304.2,4304.1,3.2078]
[1754790896573,2.61047,4304.2,4304.1,3.35809735]
[1754790896774,2.61047,4304.2,4304.1,3.67299735]
[1754790897173,2.61047,4304.2,4304.1,4.24959735]
[1754790897775,2.61047,4304.2,4304.1,4.61549735]
[1754790897980,2.61047,4304.2,4304.1,5.09119735]
[1754790898475,2.1459,4304.2,4304.1,5.09119735]
[1754790899277,2.1459,4304.2,4304.1,3.66839735]
[1754790899472,2.1459,4304.2,4304.1,5.09119735]
[1754790900177,2.1459,4304.2,4304.1,3.35809735]
[1754790900475,2.1459,4304.2,4304.1,3.2078]
[1754790901873,2.61053,4303.6,4303.5,0.3149]
[1754790902173,2.61053,4303.6,4303.5,0.5812]
[1754790902380,2.1459,4303.5,4303.3,3.2078]
[1754790902573,2.1459,4303.4,4303.3,3.2078]
[1754790904671,1.16167,4303.3,4302.7,3.2078]
[1754790904974,1.33296,4302.4,4302.3,1.3672]
[1754790905170,1.73296,4302.4,4302.1,3.2078]
[1754790905374,1.7499,4302.2,4302.1,4.5038]
[1754790905578,2.0295,4302.2,4302.1,4.5038]
[1754790905775,2.0295,4302.2,4302.1,4.977]
[1754790906377,0.7908,4302.2,4302.1,5.4242]
[1754790907784,1.8185,4302.2,4302.1,5.4242]
[1754790907976,1.0277,4302.2,4302.1,5.4242]
[1754790908181,1.3499,4302.2,4302.1,5.4242]
[1754790908583,0.9016,4302.2,4302.1,5.4242]
[1754790909178,1.3499,4302.2,4302.1,5.4242]
[1754790909380,1.7499,4302.2,4302.1,5.4242]
[1754790909986,2.2185,4302.2,4302.1,3.2078]
[1754790910584,0.9016,4301.5,4301.4,3.5295]
[1754790910789,2.2185,4301.5,4301.4,3.5295]
[1754790910989,2.2185,4301.5,4301.4,4.1179]
[1754790911190,2.2185,4301.5,4301.4,4.951]
[1754790911391,2.2185,4301.5,4301.4,5.4242]
[1754790911891,2.6834,4301.1,4301.0,2.2164]
[1754790912894,1.3665,4301.1,4301.0,2.2164]
[1754790913486,2.2148,4301.1,4301.0,2.2164]
[1754790913687,2.6834,4301.1,4301.0,2.2164]
[1754790914589,2.2148,4301.1,4301.0,2.2164]
[1754790915390,1.8148,4301.1,4301.0,2.2164]
[1754790916490,2.2148,4301.1,4301.0,2.2164]
[1754790916988,2.6834,4301.1,4301.0,2.2164]
[1754790917400,2.6834,4301.1,4300.9,3.2078]
[1754790917595,2.2185,4301.0,4300.9,4.5651]
[1754790917796,2.2185,4301.0,4300.9,3.5295]
[1754790918203,2.2185,4301.0,4300.9,3.2078]
[1754790918706,2.2185,4301.0,4300.9,3.5295]
[1754790918908,2.2185,4301.0,4300.9,5.4242]
[1754790919707,2.2185,4301.0,4300.9,2.2164]
[1754790920408,2.7185,4301.0,4300.9,2.2164]
[1754790921610,2.2185,4301.0,4300.9,2.2164]
[1754790922104,0.46497,4300.5,4300.4,3.2078]
[1754790922305,2.21487,4300.5,4300.4,5.4242]
[1754790922705,2.68347,4300.5,4300.4,5.4242]
[1754790922907,2.68347,4300.5,4300.4,3.2078]
[1754790923909,2.68347,4300.5,4300.4,3.5295]
[1754790924918,2.68347,4300.5,4300.4,4.5651]
[1754790925211,3.28082291,4301.2,4301.1,2.2164]
[1754790925605,6.32354499,4301.2,4301.1,2.2164]
[1754790925908,1.96392291,4301.2,4301.1,2.2164]
[1754790926104,0.46487,4301.4,4301.2,2.2164]
[1754790926412,0.46485,4301.6,4301.5,2.2164]
[1754790926609,1.36645,4301.6,4301.5,2.2164]
[1754790927211,2.21475,4301.6,4301.5,2.2164]
[1754790927408,1.36651,4301.1,4301.0,24.0264]
[1754790927606,2.68341,4301.1,4301.0,0.3217]
[1754790927806,1.36653,4300.8,4300.7,1.3573]
[1754790928003,0.46493,4300.8,4300.7,2.2164]
[1754790928204,2.68343,4300.8,4300.7,1.8305]
[1754790928413,0.46493,4300.9,4300.8,2.2164]
[1754790928612,2.68343,4300.9,4300.8,2.2164]
[1754790929916,0.46507,4299.5,4299.4,1.7692]
[1754790930107,4.0561,4300.2,4299.4,25.9239]
[1754790930414,0.59743291,4300.6,4300.5,2.2164]
[1754790930609,4.0561,4300.9,4300.6,1.8305]
[1754790930610,0.77594,4300.7,4300.6,1.8305]
[1754790930808,2.28344,4300.7,4300.6,0.9101]
[1754790931004,2.6835,4300.2,4300.1,0.3217]
[1754790931212,0.465,4300.2,4300.1,2.2164]
[1754790932316,0.46499,4300.4,4300.3,0.9101]
[1754790932508,0.46499,4300.4,4300.3,2.2164]
[1754790933216,2.21489,4300.4,4300.3,2.2164]
[1754790933418,2.68349,4300.4,4300.3,0.3217]
[1754790933817,0.77599,4300.4,4300.3,2.2164]
[1754790934019,1.36659,4300.4,4300.3,2.2164]
[1754790934212,2.21489,4300.4,4300.3,2.2164]
[1754790934417,3.18349,4300.4,4300.3,2.2164]
[1754790934921,1.36662,4300.0,4299.9,24.0204]
[1754790935117,2.68352,4300.0,4299.9,24.1679396]
[1754790935418,2.68352,4300.0,4299.9,2.3607396]
[1754790935605,2.68352,4300.0,4299.9,1.8914396]
[1754790935810,2.68352,4300.0,4299.9,1.89147215]
[1754790936116,1.80392,4300.0,4299.9,2.36077215]
[1754790936411,2.67552,4300.0,4299.9,0.77197215]
[1754790936615,1.35196,4299.6,4299.5,2.2132]
[1754790936810,2.68066,4299.6,4299.5,2.36079697]
[1754790937011,2.68066,4299.6,4299.5,2.2132]
[1754790937216,2.68066,4299.6,4299.5,2.36083173]
[1754790937416,0.46506,4299.6,4299.5,2.36080523]
[1754790938519,2.22453291,4300.2,4300.1,0.8922]
[1754790938721,3.27803291,4300.2,4300.1,2.2132]
[1754790939219,2.6806,4300.2,4300.1,2.2132]
[1754790940022,2.2016,4300.2,4300.1,2.2132]
[1754790940216,0.5,4300.4,4300.3,0.8922]
[1754790940412,0.46492,4301.0,4300.3,27.28612918]
[1754790940621,0.4649,4301.1,4300.9,0.6244]
[1754790940816,0.4649,4301.1,4301.0,1.72092918]
[1754790941822,1.9073,4301.1,4301.0,1.72092918]
[1754790942015,2.6805,4301.1,4301.0,1.72092918]
[1754790943022,2.2234,4301.1,4301.0,1.72094367]
[1754790943221,1.0357,4301.1,4301.0,1.72094367]
[1754790943521,0.7233,4301.1,4301.0,1.72094367]
[1754790943922,2.6805,4301.1,4301.0,1.72094367]
[1754790945123,2.6805,4301.1,4301.0,1.5732]
[1754790946121,2.6805,4301.1,4300.8,3.2078]
[1754790946322,2.2156,4301.0,4300.9,23.3672]
[1754790948626,1.7585,4301.0,4300.9,23.3672]
[1754790950728,2.7156,4301.0,4300.9,23.8672]
[1754790951827,0.5,4301.0,4300.9,23.8672]
[1754790952022,0.5,4301.0,4300.9,24.01493251]
[1754790952223,0.94383,4301.8,4301.7,1.3679]
[1754790952422,0.94383,4301.8,4301.7,23.1539]
[1754790952629,1.46463,4301.8,4301.7,22.8797]
[1754790952929,2.17333,4301.8,4301.7,22.8797]
[1754790953231,2.63043,4301.8,4301.7,22.8797]
[1754790956932,2.2156,4301.8,4301.7,22.8797]
[1754790958725,1.7585,4301.8,4301.7,22.8797]
[1754790959324,2.2156,4301.8,4301.7,22.8797]
[1754790960427,0.46484,4301.7,4301.5,3.2078]
[1754790960619,2.2156,4301.6,4301.5,3.2078]
[1754790961525,0.8869,4301.0,4300.9,3.7078]
[1754790961732,2.68051,4301.0,4300.9,25.7939]
[1754790962230,3.18051,4301.0,4300.9,25.7939]
[1754790962430,3.18051,4301.0,4300.9,26.5765]
[1754790962632,2.72341,4301.0,4300.9,4.8015]
[1754790962832,3.18051,4301.0,4300.9,26.5745]
[1754790964128,0.3124,4300.0,4299.9,3.2078]
[1754790964329,2.68062,4300.0,4299.9,24.9788]
[1754790964634,0.8869,4299.3,4299.2,4.1]
[1754790964830,2.6807,4299.3,4299.2,26.7125]
[1754790967330,2.6807,4299.3,4299.2,25.871]
[1754790967532,2.6807,4299.3,4299.2,25.5577]
[1754790967835,0.93628,4299.5,4299.4,1.6851]
[1754790968034,0.93628,4299.5,4299.4,2.0518]
[1754790968233,1.50488,4299.5,4299.4,2.0518]
[1754790968435,1.79648,4299.5,4299.4,1.6851]
[1754790969025,2.16698,4299.5,4299.4,1.6851]
[1754790969436,0.46508,4299.5,4299.4,1.6851]
[1754790969642,0.8488,4300.1,4299.2,24.9788]
[1754790969643,0.93624,4299.8,4299.7,2.0518]
[1754790969827,1.79644,4299.8,4299.7,21.77]
[1754790970031,2.64524,4299.8,4299.7,22.3795]
[1754790970230,2.64524,4299.8,4299.7,23.4551]
[1754790970437,2.64524,4299.8,4299.7,21.77]
[1754790971432,2.64524,4299.8,4299.4,0.8285]
[1754790971433,2.64528,4299.5,4299.3,5.34]
[1754790971635,2.64528,4299.5,4299.4,21.77]
[1754790972740,2.64528,4299.5,4299.4,22.3795]
[1754790972940,2.64528,4299.5,4299.4,23.4551]
[1754790975439,1.79648,4299.5,4299.4,23.8218]
[1754790975840,2.64528,4299.5,4299.4,23.4551]
[1754790978736,0.46505,4299.8,4299.5,0.8285]
[1754790979037,1.69575,4299.8,4299.7,1.6851]
[1754790979245,2.17405,4299.8,4299.7,23.4511]
[1754790979438,0.4651,4299.3,4299.2,3.2078]
[1754790979736,0.46509,4299.4,4299.2,5.2596]
[1754790980041,0.93629,4299.4,4299.3,2.0518]
[1754790980242,1.23819,4299.4,4299.3,2.0518]
[1754790981538,0.7731,4299.4,4299.3,2.0518]
[1754790981746,0.5,4299.5,4299.4,1.9423]
[1754790982042,0.5,4299.5,4299.4,24.3148]
[1754790982233,1.5398,4299.5,4299.4,24.3148]
[1754790982432,1.8314,4299.5,4299.4,24.3148]
[1754790982846,1.8314,4299.5,4299.4,23.9481]
[1754790983041,2.6802,4299.5,4299.4,23.9481]
[1754790983440,1.2731,4299.5,4299.4,24.3148]
[1754790983640,0.9712,4299.5,4299.4,24.3148]
[1754790984042,1.2731,4299.5,4299.4,24.3148]
[1754790984250,1.2731,4299.5,4299.4,23.9481]
[1754790984251,2.6802,4299.5,4299.4,23.9481]
[1754790985343,2.6802,4299.5,4299.4,24.09543572]
[1754790985546,2.6802,4299.5,4299.4,22.70183572]
[1754790985742,2.6802,4299.5,4299.4,22.263]
[1754790986242,2.6802,4299.5,4299.4,22.261]
[1754790986449,2.6802,4299.5,4299.4,0.5]
[1754790986844,2.6802,4299.5,4299.3,21.76]
[1754790986845,2.6802,4299.5,4299.2,2.66612]
[1754790987039,2.6802,4299.5,4298.5,0.18496122]
[1754790987040,0.46517,4298.6,4298.5,3.7464]
[1754790987346,1.52987,4298.6,4298.5,26.79937991]
[1754790987640,2.64537,4298.6,4298.5,26.6519]
[1754790987847,2.64537,4298.6,4298.5,25.5054]
[1754790988034,2.64537,4298.6,4298.5,25.8234]
[1754790988239,0.93637,4298.6,4298.5,26.79945366]
[1754790988545,0.93637,4298.6,4298.5,27.0186]
[1754790989242,2.00809,4299.4,4299.3,0.8566]
[1754790989541,2.64529,4299.4,4299.3,23.4451]
[1754790990242,2.64529,4299.4,4299.3,21.76]
[1754790992149,2.64534,4298.9,4298.8,1.6851]
[1754790992342,2.1802,4298.9,4298.8,23.58989958]
[1754790992643,0.3019,4299.3,4299.2,1.6851]
[1754790992842,0.5935,4299.3,4299.2,23.58897551]
[1754790993039,1.3385,4299.3,4299.2,23.58897551]
[1754790993239,1.8097,4299.3,4299.2,23.58897551]
[1754790993840,2.1802,4299.3,4299.2,23.58908846]
[1754790994046,2.1802,4299.3,4299.2,23.14948846]
[1754790994240,2.1802,4299.3,4299.2,22.76058846]
[1754790994448,2.1802,4299.3,4299.2,22.44258846]
[1754790994846,2.1802,4299.3,4299.2,21.90375049]
[1754790995040,2.1802,4299.3,4299.2,21.757]
[1754790995640,2.1802,4299.3,4299.2,22.6136]
[1754790995947,2.1802,4299.3,4299.2,23.4592]
[1754790996841,2.1802,4299.3,4299.2,22.2956]
[1754790997041,2.1802,4299.3,4299.2,23.4562]
[1754790999146,1.76667998,4299.8,4298.5,3.2078]
[1754790999342,2.1691,4298.7,4298.6,23.64023216]
[1754790999542,0.5,4298.9,4298.6,23.99743216]
[1754790999745,0.5,4298.9,4298.8,1.641]
[1754790999947,0.5,4298.9,4298.8,2.24443216]
[1754791003055,0.9622,4298.9,4298.8,2.24443216]
[1754791003456,0.5,4298.9,4298.8,2.24443216]
[1754791004152,0.5,4298.9,4298.8,1.88723216]
[1754791004153,1.8361,4298.9,4298.8,1.88723216]
[1754791004354,2.2934,4298.9,4298.8,1.88723216]
[1754791004949,0.9622,4298.9,4298.8,2.24443216]
[1754791005148,0.5,4298.9,4298.8,2.24443216]
[1754791007059,2.4136008,4300.8,4298.8,2.24443216]
[1754791007060,1.7934,4300.2,4300.1,1.7404]
[1754791007261,1.7934,4300.2,4300.1,23.63423216]
[1754791007561,2.1691,4300.2,4300.1,23.63423216]
[1754791007766,2.1691,4300.2,4300.1,23.17763216]
[1754791008060,2.1691,4300.2,4300.1,22.15723216]
[1754791008656,2.1691,4300.2,4300.1,21.89383216]
[1754791008863,2.1691,4300.2,4300.1,21.747]
[1754791009053,0.46501,4300.1,4300.0,3.2078]
[1754791009257,0.46507,4299.6,4299.5,21.745]
[1754791009457,2.63417,4299.6,4299.5,21.745]
[1754791010658,2.1691,4299.5,4299.4,3.2078]
[1754791011566,1.33905,4298.9,4298.8,21.742]
[1754791011765,1.33905,4298.9,4298.7,3.2078]
[1754791012265,2.1691,4298.8,4298.7,3.2078]
[1754791012468,2.1691,4298.8,4298.6,21.742]
[1754791012659,2.1691,4298.7,4298.6,21.742]
[1754791012862,2.1691,4298.7,4298.6,22.3218]
[1754791013165,2.1691,4298.7,4298.6,23.4824]
[1754791013766,2.1691,4298.7,4298.6,23.0258]
[1754791013960,2.1691,4298.7,4298.6,22.3218]
[1754791014161,2.1691,4298.7,4298.6,23.4824]
[1754791014867,2.1691,4298.7,4298.6,23.0258]
[1754791015063,3.2078,4299.7,4299.6,0.5798]
[1754791015266,5.3769,4299.7,4299.6,1.7404]
[1754791015468,5.98192508,4299.7,4299.6,1.7404]
[1754791015668,5.98192508,4299.7,4299.6,0.5798]
[1754791015963,5.98192508,4299.7,4299.6,0.2634]
[1754791016864,5.98192508,4299.7,4299.5,21.74]
[1754791017065,2.1691,4299.6,4299.5,21.74]
[1754791017266,2.77419374,4299.6,4299.5,21.74]
[1754791017465,2.1691,4299.3,4299.2,21.741]
[1754791019874,1.33901,4299.2,4299.1,0.5798]
[1754791020176,2.63421,4299.2,4299.1,0.9688]
[1754791021472,1.0702,4299.2,4299.1,2.0976]
[1754791021773,0.4622,4299.2,4299.1,2.0976]
[1754791021974,4.12442052,4299.7,4299.6,1.7404]
[1754791022174,3.5192,4299.7,4299.6,1.7404]
[1754791022365,3.5192,4299.7,4299.6,2.0976]
[1754791022565,3.9814,4299.7,4299.6,2.0976]
[1754791022766,4.278,4299.7,4299.6,2.0976]
[1754791023168,4.278,4299.7,4299.6,1.7404]
[1754791023673,1.8361,4300.2,4300.1,0.8948]
[1754791023870,2.6691,4300.2,4300.1,1.7404]
[1754791024270,2.6691,4300.2,4300.1,2.2404]
[1754791024772,0.5,4300.2,4300.1,2.5976]
[1754791024969,2.2934,4300.2,4300.1,1.7838]
[1754791025273,2.6691,4300.2,4300.1,0.7536]
[1754791025475,2.1691,4300.2,4300.1,0.7536]
[1754791025670,2.1691,4300.2,4300.1,0.5]
[1754791026371,1.9164,4299.7,4299.6,3.2078]
[1754791026875,1.9164,4299.7,4299.6,3.4614]
[1754791027467,1.9164,4299.7,4299.6,3.2078]
[1754791027674,1.9164,4299.0,4298.9,4.9085]
[1754791027870,1.9164,4299.0,4298.9,26.6395]
[1754791028264,1.9164,4299.0,4298.9,23.4317]
[1754791028669,1.8664,4299.0,4298.9,23.4317]
[1754791030472,1.4426,4299.0,4298.9,23.4317]
[1754791030680,0.8928,4299.3,4299.2,0.8333]
[1754791030875,1.046,4299.3,4299.2,2.1388]
[1754791032178,0.2899,4299.4,4299.3,1.7007]
[1754791032474,0.5,4299.7,4299.3,23.8688]
[1754791032674,0.9462,4299.7,4299.6,0.8333]
[1754791032874,1.546,4299.7,4299.6,2.1388]
[1754791033078,1.9926,4299.7,4299.6,1.7007]
[1754791034576,0.9462,4299.7,4299.6,1.7007]
[1754791034783,0.9462,4299.7,4299.6,2.1388]
[1754791035082,0.5,4299.7,4299.6,2.1388]
[1754791036375,0.093,4299.7,4299.6,2.1388]
[1754791037577,0.093,4299.7,4299.6,2.6388]
[1754791039180,0.5392,4299.7,4299.6,2.6388]
[1754791039785,2.2337,4299.7,4299.6,2.2007]
[1754791039985,0.093,4299.7,4299.6,2.6388]
[1754791040377,0.4462,4300.3,4300.2,0.8333]
[1754791040585,1.046,4300.3,4300.2,23.8608]
[1754791040886,0.4462,4300.3,4300.2,24.3258]
[1754791041682,0.7361,4300.3,4300.2,24.3258]
[1754791041884,0.4462,4301.1,4301.0,1.2384]
[1754791042083,1.4926,4301.4,4301.3,0.8333]
[1754791042284,0.7361,4301.4,4301.3,2.1388]
[1754791042882,1.3031,4301.4,4301.3,2.1388]
[1754791043082,1.7497,4301.4,4301.3,2.1388]
[1754791043789,1.7497,4301.4,4301.3,1.7007]
[1754791043988,2.1407,4301.4,4301.3,1.7007]
[1754791047088,0.4462,4301.4,4301.3,2.1388]
[1754791047285,0.7361,4301.7,4301.4,1.77037]
[1754791047490,0.2899,4301.7,4301.6,2.1388]
[1754791047987,1.3031,4301.7,4301.6,2.1388]
[1754791048182,2.1407,4301.7,4301.6,1.7007]
[1754791053690,1.3031,4302.7,4302.6,0.5427]
[1754791053886,1.6941,4302.7,4302.6,1.7007]
[1754791054590,2.1407,4302.7,4302.6,1.7007]
[1754791055794,2.1407,4302.7,4302.6,1.2384]
[1754791056090,2.1407,4302.7,4302.5,21.705]
[1754791056285,1.2658,4302.6,4302.5,21.705]
[1754791056491,2.0963,4302.6,4302.5,21.705]
[1754791056892,2.0963,4302.6,4302.5,21.9506]
[1754791058385,0.8361,4303.1,4302.5,23.4005]
[1754791058589,1.2833,4302.6,4302.5,21.705]
[1754791058789,2.0963,4302.6,4302.5,21.9506]
[1754791058985,2.0963,4302.6,4302.5,22.9314]
[1754791059282,0.2488,4302.2,4302.1,0.6233]
[1754791059488,2.0963,4302.2,4302.1,23.3925]
[1754791059894,2.0963,4302.2,4302.1,22.5457]
[1754791060094,2.0963,4302.2,4302.1,21.9426]
[1754791060295,1.713,4302.2,4302.1,22.6304]
[1754791060494,2.0963,4302.2,4302.1,23.3925]
[1754791060895,2.0963,4302.2,4302.1,22.6304]
[1754791061193,2.0963,4302.2,4302.1,22.2527]
[1754791061591,0.2952,4302.0,4301.9,3.2078]
[1754791061785,2.0963,4302.0,4301.9,24.9028]
[1754791061986,2.5963,4301.7,4301.6,0.5]
[1754791062290,2.5963,4301.7,4301.6,1.7264]
[1754791062494,2.5963,4301.7,4301.6,0.5]
[1754791062893,2.5963,4301.7,4301.6,0.7456]
[1754791063196,2.5963,4301.7,4301.6,22.193]
[1754791063598,2.5963,4301.7,4301.6,0.5]
[1754791064693,11.68562242,4301.7,4301.6,0.5]
[1754791066703,2.5963,4301.7,4301.6,2.1955]
[1754791066895,0.5,4301.7,4301.6,2.1955]
[1754791067095,0.5,4301.7,4301.6,2.6245]
[1754791067800,2.5963,4301.7,4301.6,2.1955]
[1754791069600,0.5,4301.7,4301.6,2.6245]
[1754791071501,0.5,4301.7,4301.6,3.08936]
[1754791071803,2.56106,4302.6,4302.5,1.6955]
[1754791071992,2.0963,4302.6,4302.5,1.6955]
[1754791072797,1.67858,4302.4,4302.0,21.687]
[1754791073098,2.0963,4302.1,4302.0,21.687]
[1754791074004,1.29531,4302.0,4301.9,3.2078]
[1754791074206,2.56111,4302.0,4301.9,3.2078]
[1754791074399,2.56111,4302.0,4301.9,3.5179]
[1754791075403,2.56111,4302.0,4301.9,3.2078]
[1754791076201,2.56111,4302.0,4301.9,4.9033]
[1754791076998,2.56111,4302.0,4301.9,4.0565]
[1754791077304,2.56111,4302.0,4301.9,3.2078]
[1754791077495,2.56115,4301.7,4301.6,0.5]
[1754791077900,1.7602,4301.7,4301.6,1.1031]
[1754791078202,2.5963,4301.7,4301.6,2.1955]
[1754791079403,2.5963,4301.7,4301.6,0.5]
[1754791081400,0.8305,4301.3,4300.7,4.0546]
[1754791081605,0.2865,4300.9,4300.8,22.5317]
[1754791082198,0.2865,4300.9,4300.8,23.8109]
[1754791082595,1.2658,4301.2,4300.8,22.5317]
[1754791082796,0.544,4301.2,4301.1,2.1279]
[1754791082999,1.3305,4301.7,4301.6,0.8487]
[1754791083205,1.3305,4301.7,4301.6,2.1279]
[1754791083506,0.5,4301.7,4301.6,2.1279]
[1754791083901,0.5,4301.7,4301.6,2.6279]
[1754791084297,4.27607084,4302.2,4301.6,1.3487]
[1754791084498,4.64177084,4302.2,4302.1,0.8487]
[1754791084700,4.64177084,4302.2,4302.1,2.1279]
[1754791084901,4.0383,4302.2,4302.1,2.1279]
[1754791085104,5.3041,4302.2,4302.1,2.1279]
[1754791085306,5.90883093,4302.2,4302.1,2.1279]
[1754791086605,5.90883093,4302.2,4302.1,0.8487]
[1754791087207,5.90883093,4302.2,4302.1,2.1697]
[1754791088508,2.27133093,4302.2,4302.1,2.1697]
[1754791088700,1.6666,4302.2,4302.1,2.1697]
[1754791089297,2.1214,4302.2,4302.1,2.1697]
[1754791090503,0.544,4302.2,4302.1,2.1697]
[1754791091205,1.6422,4302.2,4302.1,2.1697]
[1754791091407,2.097,4302.2,4302.1,2.1697]
[1754791091607,1.3057,4302.1,4301.8,3.2078]
[1754791091809,2.1134,4301.9,4301.8,24.8848]
[1754791092205,2.1134,4301.9,4301.8,3.2078]
[1754791092403,0.8409,4301.7,4301.6,0.5]
[1754791092610,2.1134,4301.7,4301.6,0.0932]
[1754791092806,5.1314775,4301.7,4301.6,0.0932]
[1754791093110,0.8409,4300.8,4300.7,3.6078]
[1754791093311,2.1134,4300.8,4300.7,3.2078]
[1754791094099,2.1134,4300.8,4300.7,4.0512]
[1754791094410,2.1134,4300.8,4300.7,4.4512]
[1754791094609,2.1134,4300.8,4300.7,5.3722]
[1754791095911,0.5,4300.9,4300.8,2.1644]
[1754791096209,2.6134,4300.9,4300.8,2.1644]
[1754791097204,1.2593,4300.9,4300.8,2.1644]
[1754791097414,0.5,4300.9,4300.8,2.1644]
[1754791097704,2.6134,4300.9,4300.8,2.1644]
[1754791097906,2.6134,4300.9,4300.8,1.6997]
[1754791098112,2.5634,4300.9,4300.8,1.6997]
[1754791098311,2.5634,4300.9,4300.8,2.1644]
[1754791100614,2.5634,4300.9,4300.7,3.2078]
[1754791100909,2.1134,4300.8,4300.7,4.6171]
[1754791101110,1.7314,4300.8,4300.7,5.3722]
[1754791101313,2.1134,4300.8,4300.7,5.3722]
[1754791101513,2.1134,4300.8,4300.7,24.8818]
[1754791102105,2.1134,4300.8,4300.7,25.1722]
[1754791102307,2.1134,4300.8,4300.7,25.7252]
[1754791102502,2.1134,4300.8,4300.7,27.0462]
[1754791102705,0.45,4300.9,4300.8,2.1644]
[1754791103113,0.7545,4300.9,4300.8,2.1644]
[1754791103308,0.45,4300.9,4300.8,2.1644]
[1754791103513,0.45,4300.9,4300.8,8.1644]
[1754791104316,2.57824,4301.8,4301.7,0.8434]
[1754791104515,2.57824,4301.8,4301.7,2.0576]
[1754791106518,1.2512408,4303.9,4301.8,1.16208]
[1754791106720,1.6586,4303.7,4303.6,0.7467]
[1754791106914,3.2078,4304.6,4303.2,3.2078]
[1754791106915,0.46464,4303.6,4303.2,3.2078]
[1754791107110,1.70963093,4303.3,4303.2,2.338]
[1754791107416,1.6586,4302.8,4302.7,21.701]
[1754791107616,1.70963093,4302.8,4302.7,22.60777691]
[1754791108616,5.37222102,4302.8,4302.7,0.16007691]
[1754791109423,8.32996782,4302.8,4302.7,0.16007691]
[1754791110619,0.2805,4302.1,4302.0,3.4982]
[1754791110923,2.16443093,4302.1,4302.0,3.9545]
[1754791111127,5.37222102,4302.1,4302.0,3.2078]
[1754791111623,0.8409,4301.9,4301.8,21.69]
[1754791111824,2.16443093,4301.9,4301.8,21.9804]